fUST/lending_fUST_20240408
["ID","MTS","AMOUNT","RATE_DAILY","PERIOD"]
[321881173,1712580643336,-500.0,0.00061917,120]
[321881175,1712580643346,-1244.93,0.00061917,120]
[321881176,1712580643355,-500.0,0.00061917,120]
[321881177,1712580643366,-500.0,0.00061917,120]
[321881178,1712580643375,-570.25,0.00061917,2]
[321881180,1712580643384,-500.0,0.00061917,120]
[321881181,1712580643393,-287.42,0.00061917,120]
[321881182,1712580643403,-500.0,0.00061917,120]
[321881183,1712580643412,-500.0,0.00061917,120]
[321881185,1712580643423,-669.32,0.00061917,120]
[321881186,1712580643433,-500.16,0.00061917,120]
[321881187,1712580643442,-230.86,0.00061917,120]
[321881188,1712580643453,-500.0,0.00061917,120]
[321881190,1712580643462,-500.0,0.00061983,120]
[321881191,1712580643474,-500.0,0.00061983,120]
[321881192,1712580643488,-226.46,0.00061983,120]
[321881194,1712580643501,-296.88997304,0.00061983,120]
[321881195,1712580643514,-500.0,0.00061983,120]
[321881196,1712580643527,-500.0,0.00061983,120]
[321881198,1712580643538,-156.0540956,0.00062231,2]
[321881199,1712580643548,-500.0,0.00062738,120]
[321881200,1712580643560,-1479.31,0.00062738,90]
[321881201,1712580643571,-500.0,0.00062738,120]
[321881203,1712580643583,-500.0,0.00062738,21]
[321881204,1712580643596,-500.0,0.00062738,120]
[321881206,1712580643608,-841.46,0.00062738,120]
[321881207,1712580643619,-500.0,0.00062738,120]
[321881208,1712580643631,-500.0,0.00062738,120]
[321881210,1712580643642,-500.0,0.00062738,120]
[321881211,1712580643653,-581.41,0.00062738,120]
[321881212,1712580643664,-500.0,0.00062738,120]
[321881214,1712580643675,-853.79,0.00062738,120]
[321881215,1712580643687,-500.0,0.00062738,120]
[321881216,1712580643699,-1093.89,0.00062738,120]
[321881218,1712580643711,-701.36,0.00062738,120]
[321881219,1712580643723,-629.85,0.00062738,120]
[321881220,1712580643734,-500.0,0.00062738,120]
[321881222,1712580643745,-500.0,0.00062738,120]
[321881223,1712580643758,-943.74,0.00062738,120]
[321881224,1712580643769,-1068.4734024,0.00062738,120]
[321881226,1712580643783,-831.5265976,0.00062738,120]
[321881227,1712580643792,-500.0,0.00062738,120]
[321881228,1712580643804,-531.64,0.00062738,120]
[321881230,1712580643817,-555.84,0.00062738,120]
[321881231,1712580643828,-500.0,0.00062738,120]
[321881232,1712580643842,-5925.21547459,0.00062739,61]
[321881234,1712580643854,-500.0,0.00062739,120]
[321881235,1712580643866,-500.0,0.00062739,120]
[321881236,1712580643876,-500.0,0.00062739,120]
[321881238,1712580643887,-500.0,0.00062739,120]
[321881239,1712580643899,-376.9320493,0.00062739,120]
[321881240,1712580643911,-500.0,0.00062739,120]
[321881242,1712580643923,-500.0,0.00062739,120]
[321881243,1712580643935,-1244.93,0.00062739,120]
[321881244,1712580643948,-500.0,0.00062739,120]
[321881246,1712580643960,-500.0,0.00062739,120]
[321881247,1712580643972,-570.25,0.00062739,2]
[321881248,1712580643984,-500.0,0.00062739,120]
[321881250,1712580643995,-500.0,0.00062739,120]
[321881251,1712580644005,-669.32,0.00062739,120]
[321881252,1712580644017,-500.0,0.00062739,120]
[321881254,1712580644027,-500.0,0.00062805,120]
[321881255,1712580644037,-500.0,0.00062805,120]
[321881256,1712580644048,-500.0,0.00062805,120]
[321881258,1712580644059,-500.0,0.00062805,120]
[321881259,1712580644070,-381.45409017,0.00063093,7]
[321881260,1712580644081,-500.0,0.0006356,120]
[321881262,1712580644093,-1479.31,0.0006356,90]
[321881263,1712580644104,-500.0,0.0006356,120]
[321881264,1712580644115,-500.0,0.0006356,21]
[321881266,1712580644126,-500.0,0.0006356,120]
[321881267,1712580644138,-841.46,0.0006356,120]
[321881268,1712580644149,-500.0,0.0006356,120]
[321881270,1712580644160,-500.0,0.0006356,120]
[321881271,1712580644171,-500.0,0.0006356,120]
[321881272,1712580644182,-581.41,0.0006356,120]
[321881273,1712580644193,-500.0,0.0006356,120]
[321881275,1712580644207,-853.79,0.0006356,120]
[321881276,1712580644218,-500.0,0.0006356,120]
[321881277,1712580644230,-1093.89,0.0006356,120]
[321881279,1712580644241,-701.36,0.0006356,120]
[321881280,1712580644255,-500.0,0.0006356,120]
[321881281,1712580644265,-500.0,0.0006356,120]
[321881282,1712580644277,-943.74,0.0006356,120]
[321881284,1712580644288,-1900.0,0.0006356,120]
[321881285,1712580644299,-500.0,0.0006356,120]
[321881286,1712580644310,-531.64,0.0006356,120]
[321881287,1712580644321,-555.84,0.0006356,120]
[321881289,1712580644331,-500.0,0.0006356,120]
[321881290,1712580644342,-601.22065158,0.00063561,120]
[321881291,1712580644352,-500.0,0.00063561,120]
[321881293,1712580644365,-500.0,0.00063561,120]
[321881294,1712580644376,-500.0,0.00063561,120]
[321881295,1712580644386,-500.0,0.00063561,120]
[321881297,1712580644397,-537.24367096,0.00063561,120]
[321881298,1712580644407,-1244.93,0.00063561,120]
[321881299,1712580644418,-500.0,0.00063561,120]
[321881301,1712580644429,-361.68627268,0.00063561,120]
[321881302,1712580644440,-570.25,0.00063561,2]
[321881303,1712580644451,-500.0,0.00063561,120]
[321881304,1712580644462,-500.0,0.00063561,120]
[321881306,1712580644473,-669.32,0.00063561,120]
[321881307,1712580644483,-500.0,0.00063627,120]
[321881308,1712580644493,-500.0,0.00063627,120]
[321881310,1712580644502,-500.0,0.00063627,120]
[321881313,1712580644604,-500.0,0.00063627,120]
[321881315,1712580644617,-312.00577526,0.00064381,7]
[321881316,1712580644627,-272.38437865,0.00064381,7]
[321881317,1712580644637,-191.04212038,0.00064381,15]
[321881319,1712580644647,-7083.1599637,0.00064382,7]
[321881320,1712580644656,-500.0,0.00064382,120]
[321881321,1712580644666,-1479.31,0.00064382,90]
[321881322,1712580644676,-500.0,0.00064382,120]
[321881324,1712580644685,-500.0,0.00064382,21]
[321881325,1712580644694,-500.0,0.00064382,120]
[321881326,1712580644704,-841.46,0.00064382,120]
[321881328,1712580644713,-500.0,0.00064382,120]
[321881329,1712580644722,-500.0,0.00064382,120]
[321881330,1712580644732,-500.0,0.00064382,120]
[321881331,1712580644741,-581.41,0.00064382,120]
[321881333,1712580644750,-500.0,0.00064382,120]
[321881334,1712580644759,-853.79,0.00064382,120]
[321881335,1712580644769,-500.0,0.00064382,120]
[321881336,1712580644778,-1093.89,0.00064382,120]
[321881338,1712580644788,-701.36,0.00064382,120]
[321881339,1712580644798,-500.0,0.00064382,120]
[321881340,1712580644807,-500.0,0.00064382,120]
[321881342,1712580644817,-943.74,0.00064382,120]
[321881343,1712580644827,-1900.0,0.00064382,120]
[321881344,1712580644837,-500.0,0.00064382,120]
[321881345,1712580644846,-531.64,0.00064382,120]
[321881347,1712580644856,-555.84,0.00064382,120]
[321881348,1712580644865,-500.0,0.00064382,120]
[321881349,1712580644874,-500.0,0.00064383,120]
[321881350,1712580644883,-500.0,0.00064383,120]
[321881352,1712580644892,-500.0,0.00064383,120]
[321881353,1712580644902,-500.0,0.00064383,120]
[321881354,1712580644911,-1244.93,0.00064383,120]
[321881355,1712580644921,-500.0,0.00064383,120]
[321881357,1712580644930,-570.25,0.00064383,2]
[321881358,1712580644940,-500.0,0.00064383,120]
[321881359,1712580644949,-500.0,0.00064383,120]
[321881360,1712580644958,-669.32,0.00064383,120]
[321881362,1712580644968,-500.0,0.00064449,120]
[321881363,1712580644977,-500.0,0.00064449,120]
[321881364,1712580644986,-500.0,0.00064449,120]
[321881366,1712580644995,-500.0,0.00064449,120]
[321881367,1712580645005,-150.00216539,0.00064913,120]
[321881368,1712580645014,-500.0,0.00065204,120]
[321881369,1712580645023,-1479.31,0.00065204,90]
[321881371,1712580645033,-500.0,0.00065204,120]
[321881372,1712580645043,-500.0,0.00065204,21]
[321881373,1712580645055,-500.0,0.00065204,120]
[321881374,1712580645066,-841.46,0.00065204,120]
[321881376,1712580645076,-500.0,0.00065204,120]
[321881377,1712580645085,-500.0,0.00065204,120]
[321881378,1712580645095,-500.0,0.00065204,120]
[321881379,1712580645105,-581.41,0.00065204,120]
[321881381,1712580645115,-500.0,0.00065204,120]
[321881382,1712580645124,-853.79,0.00065204,120]
[321881383,1712580645134,-500.0,0.00065204,120]
[321881384,1712580645144,-1093.89,0.00065204,120]
[321881386,1712580645154,-701.36,0.00065204,120]
[321881387,1712580645163,-500.0,0.00065204,120]
[321881388,1712580645174,-500.0,0.00065204,120]
[321881389,1712580645187,-943.74,0.00065204,120]
[321881391,1712580645196,-1900.0,0.00065204,120]
[321881392,1712580645206,-500.0,0.00065204,120]
[321881393,1712580645215,-531.64,0.00065204,120]
[321881394,1712580645226,-555.84,0.00065204,120]
[321881396,1712580645235,-500.0,0.00065204,120]
[321881397,1712580645246,-500.0,0.00065205,120]
[321881398,1712580645255,-500.0,0.00065205,120]
[321881400,1712580645266,-500.0,0.00065205,120]
[321881403,1712580645275,-500.0,0.00065205,120]
[321881405,1712580645284,-1244.93,0.00065205,120]
[321881406,1712580645294,-500.0,0.00065205,120]
[321881407,1712580645305,-570.25,0.00065205,2]
[321881408,1712580645314,-500.0,0.00065205,120]
[321881410,1712580645322,-500.0,0.00065205,120]
[321881412,1712580645332,-669.32,0.00065205,120]
[321881413,1712580645341,-500.0,0.00065271,120]
[321881414,1712580645351,-500.0,0.00065271,120]
[321881416,1712580645360,-500.0,0.00065271,120]
[321881417,1712580645370,-500.0,0.00065271,120]
[321881418,1712580645379,-500.0,0.00065753,120]
[321881420,1712580645389,-500.0,0.00065753,120]
[321881422,1712580645399,-500.0,0.00065753,120]
[321881423,1712580645408,-500.0,0.00065753,120]
[321881424,1712580645419,-500.0,0.00065753,120]
[321881425,1712580645428,-222.08,0.00065753,120]
[321881427,1712580645437,-500.0,0.00065753,120]
[321881428,1712580645448,-150.00216541,0.00065809,120]
[321881429,1712580645458,-500.0,0.00066026,120]
[321881430,1712580645468,-1479.31,0.00066026,90]
[321881432,1712580645477,-500.0,0.00066026,120]
[321881433,1712580645487,-500.0,0.00066026,21]
[321881434,1712580645498,-500.0,0.00066026,120]
[321881435,1712580645506,-841.46,0.00066026,120]
[321881437,1712580645515,-500.0,0.00066026,120]
[321881438,1712580645524,-500.0,0.00066026,120]
[321881439,1712580645535,-500.0,0.00066026,120]
[321881440,1712580645544,-581.41,0.00066026,120]
[321881442,1712580645553,-500.0,0.00066026,120]
[321881443,1712580645563,-853.79,0.00066026,120]
[321881444,1712580645572,-500.0,0.00066026,120]
[321881445,1712580645581,-1093.89,0.00066026,120]
[321881447,1712580645591,-701.36,0.00066026,120]
[321881448,1712580645601,-500.0,0.00066026,120]
[321881449,1712580645610,-500.0,0.00066026,120]
[321881450,1712580645621,-943.74,0.00066026,120]
[321881452,1712580645630,-1900.0,0.00066026,120]
[321881453,1712580645640,-477.47716962,0.00066026,120]
[321881454,1712580645650,-531.64,0.00066026,120]
[321881455,1712580645659,-555.84,0.00066026,120]
[321881457,1712580645668,-500.0,0.00066026,120]
[321881458,1712580645678,-379.78800194,0.00066027,120]
[321881459,1712580645687,-500.0,0.00066027,120]
[321881460,1712580645697,-500.0,0.00066027,120]
[321881462,1712580645706,-500.0,0.00066027,120]
[321881463,1712580645716,-1244.93,0.00066027,120]
[321881464,1712580645726,-500.0,0.00066027,120]
[321881465,1712580645735,-570.25,0.00066027,2]
[321881467,1712580645744,-500.0,0.00066027,120]
[321881468,1712580645754,-500.0,0.00066027,120]
[321881469,1712580645764,-669.32,0.00066027,120]
[321881470,1712580645774,-500.0,0.00066093,120]
[321881472,1712580645784,-500.0,0.00066093,120]
[321881473,1712580645793,-500.0,0.00066093,120]
[321881474,1712580645803,-500.0,0.00066093,120]
[321881475,1712580645813,-500.0,0.00066848,120]
[321881477,1712580645822,-1479.31,0.00066848,90]
[321881478,1712580645832,-500.0,0.00066848,120]
[321881479,1712580645842,-500.0,0.00066848,21]
[321881480,1712580645851,-500.0,0.00066848,120]
[321881482,1712580645860,-841.46,0.00066848,120]
[321881483,1712580645869,-500.0,0.00066848,120]
[321881484,1712580645879,-500.0,0.00066848,120]
[321881485,1712580645888,-500.0,0.00066848,120]
[321881487,1712580645897,-581.41,0.00066848,120]
[321881488,1712580645907,-500.0,0.00066848,120]
[321881489,1712580645916,-853.79,0.00066848,120]
[321881490,1712580645926,-500.0,0.00066848,120]
[321881492,1712580645936,-1093.89,0.00066848,120]
[321881493,1712580645945,-701.36,0.00066848,120]
[321881494,1712580645955,-500.0,0.00066848,120]
[321881495,1712580645964,-500.0,0.00066848,120]
[321881497,1712580645974,-943.74,0.00066848,120]
[321881498,1712580645984,-1900.0,0.00066848,120]
[321881499,1712580645993,-531.64,0.00066848,120]
[321881500,1712580646003,-555.84,0.00066848,120]
[321881502,1712580646012,-500.0,0.00066848,120]
[321881503,1712580646022,-500.0,0.00066849,120]
[321881504,1712580646031,-500.0,0.00066849,120]
[321881505,1712580646041,-500.0,0.00066849,120]
[321881507,1712580646050,-1244.93,0.00066849,120]
[321881508,1712580646059,-500.0,0.00066849,120]
[321881509,1712580646073,-570.25,0.00066849,2]
[321881510,1712580646083,-500.0,0.00066849,120]
[321881512,1712580646092,-500.0,0.00066849,120]
[321881513,1712580646101,-669.32,0.00066849,120]
[321881514,1712580646110,-500.0,0.00066915,120]
[321881515,1712580646119,-426.24896103,0.00066915,120]
[321881517,1712580646129,-500.0,0.00066915,120]
[321881518,1712580646139,-500.0,0.00066915,120]
[321881519,1712580646148,-235.021097,0.00067288,120]
[321881521,1712580646158,-500.0,0.0006767,120]
[321881522,1712580646167,-1479.31,0.0006767,90]
[321881523,1712580646181,-500.0,0.0006767,120]
[321881524,1712580646194,-500.0,0.0006767,21]
[321881526,1712580646203,-500.0,0.0006767,120]
[321881527,1712580646212,-841.46,0.0006767,120]
[321881528,1712580646222,-500.0,0.0006767,120]
[321881529,1712580646231,-500.0,0.0006767,120]
[321881531,1712580646241,-500.0,0.0006767,120]
[321881532,1712580646251,-581.41,0.0006767,120]
[321881533,1712580646260,-500.0,0.0006767,120]
[321881534,1712580646269,-853.79,0.0006767,120]
[321881536,1712580646280,-500.0,0.0006767,120]
[321881537,1712580646289,-1093.89,0.0006767,120]
[321881538,1712580646298,-701.36,0.0006767,120]
[321881539,1712580646308,-500.0,0.0006767,120]
[321881540,1712580646317,-500.0,0.0006767,120]
[321881542,1712580646327,-943.74,0.0006767,120]
[321881543,1712580646337,-1900.0,0.0006767,120]
[321881544,1712580646346,-531.64,0.0006767,120]
[321881546,1712580646357,-555.84,0.0006767,120]
[321881547,1712580646367,-500.0,0.0006767,120]
[321881548,1712580646377,-500.0,0.00067671,120]
[321881549,1712580646386,-500.0,0.00067671,120]
[321881550,1712580646396,-500.0,0.00067671,120]
[321881552,1712580646405,-1244.93,0.00067671,120]
[321881553,1712580646415,-525.03668551,0.00067671,120]
[321881554,1712580646428,-570.25,0.00067671,2]
[321881555,1712580646437,-500.0,0.00067671,120]
[321881557,1712580646447,-500.0,0.00067671,120]
[321881558,1712580646457,-669.32,0.00067671,120]
[321881559,1712580646466,-156.0540956,0.00067688,2]
[321881560,1712580646476,-500.0,0.00067737,120]
[321881562,1712580646486,-500.0,0.00067737,120]
[321881563,1712580646496,-500.0,0.00067737,120]
[321881564,1712580646505,-200.0,0.00068231,120]
[321881565,1712580646515,-500.0,0.00068492,120]
[321881567,1712580646524,-1479.31,0.00068492,90]
[321881568,1712580646535,-500.0,0.00068492,120]
[321881569,1712580646544,-500.0,0.00068492,21]
[321881570,1712580646554,-500.0,0.00068492,120]
[321881571,1712580646563,-841.46,0.00068492,120]
[321881573,1712580646573,-500.0,0.00068492,120]
[321881574,1712580646583,-500.0,0.00068492,120]
[321881575,1712580646592,-407.37847844,0.00068492,120]
[321881576,1712580646602,-581.41,0.00068492,120]
[321881578,1712580646612,-500.0,0.00068492,120]
[321881579,1712580646621,-853.79,0.00068492,120]
[321881580,1712580646631,-500.0,0.00068492,120]
[321881581,1712580646640,-1093.89,0.00068492,120]
[321881583,1712580646650,-701.36,0.00068492,120]
[321881584,1712580646659,-500.0,0.00068492,120]
[321881585,1712580646668,-500.0,0.00068492,120]
[321881586,1712580646680,-943.74,0.00068492,120]
[321881588,1712580646689,-1900.0,0.00068492,120]
[321881589,1712580646699,-531.64,0.00068492,120]
[321881590,1712580646708,-555.84,0.00068492,120]
[321881591,1712580646718,-500.0,0.00068492,120]
[321881593,1712580646727,-500.0,0.00068493,120]
[321881594,1712580646737,-500.0,0.00068493,120]
[321881595,1712580646747,-500.0,0.00068493,120]
[321881596,1712580646757,-1244.93,0.00068493,120]
[321881598,1712580646766,-570.25,0.00068493,2]
[321881599,1712580646776,-500.0,0.00068493,120]
[321881600,1712580646786,-500.0,0.00068493,120]
[321881601,1712580646796,-669.32,0.00068493,120]
[321881602,1712580646806,-158.536154,0.00068493,2]
[321881604,1712580646815,-500.0,0.00068559,120]
[321881605,1712580646826,-500.0,0.00068559,120]
[321881606,1712580646836,-500.0,0.00068559,120]
[321881607,1712580646845,-154.84515485,0.00069,7]
[321881610,1712580646855,-500.0,0.00069,30]
[321881612,1712580646864,-200.0,0.00069167,120]
[321881614,1712580646874,-500.0,0.00069313,120]
[321881615,1712580646883,-1479.31,0.00069313,90]
[321881617,1712580646893,-500.0,0.00069313,120]
[321881619,1712580646902,-500.0,0.00069313,21]
[321881620,1712580646912,-500.0,0.00069313,120]
[321881621,1712580646922,-841.46,0.00069313,120]
[321881622,1712580647011,-500.0,0.00069313,120]
[321881623,1712580647022,-500.0,0.00069313,120]
[321881624,1712580647032,-581.41,0.00069313,120]
[321881625,1712580647042,-322.26,0.00069313,120]
[321881626,1712580647051,-853.79,0.00069313,120]
[321881627,1712580647061,-500.0,0.00069313,120]
[321881628,1712580647070,-1093.89,0.00069313,120]
[321881629,1712580647079,-701.36,0.00069313,120]
[321881630,1712580647089,-458.78766605,0.00069313,120]
[321881631,1712580647099,-578.02525548,0.00069313,120]
[321881633,1712580647108,-943.74,0.00069313,120]
[321881634,1712580647118,-1900.0,0.00069313,120]
[321881635,1712580647128,-531.64,0.00069313,120]
[321881636,1712580647137,-555.84,0.00069313,120]
[321881638,1712580647147,-500.0,0.00069313,120]
[321881639,1712580647156,-500.0,0.00069315,120]
[321881640,1712580647166,-500.0,0.00069315,120]
[321881641,1712580647178,-500.0,0.00069315,120]
[321881643,1712580647191,-1244.93,0.00069315,120]
[321881644,1712580647201,-570.25,0.00069315,2]
[321881645,1712580647210,-500.0,0.00069315,120]
[321881646,1712580647220,-500.0,0.00069315,120]
[321881647,1712580647230,-669.32,0.00069315,120]
[321881649,1712580647240,-500.0,0.00069381,120]
[321881650,1712580647250,-500.0,0.00069381,120]
[321881651,1712580647261,-500.0,0.00069381,120]
[321881652,1712580647271,-585.0,0.000699,30]
[321881654,1712580647281,-10000.0,0.000699,120]
[321881655,1712580647290,-869.72298424,0.0007,60]
[321881656,1712580647300,-592.092112,0.000701,60]
[321881657,1712580647309,-500.0,0.00070135,120]
[321881659,1712580647318,-1479.31,0.00070135,90]
[321881660,1712580647327,-500.0,0.00070135,120]
[321881661,1712580647337,-500.0,0.00070135,21]
[321881662,1712580647347,-396.58310046,0.00070135,120]
[321881664,1712580647357,-841.46,0.00070135,120]
[321881665,1712580647366,-500.0,0.00070135,120]
[321881666,1712580647375,-188.00386869,0.00070135,120]
[321881667,1712580647385,-581.41,0.00070135,120]
[321881669,1712580647395,-853.79,0.00070135,120]
[321881670,1712580647404,-500.0,0.00070135,120]
[321881671,1712580647414,-1093.89,0.00070135,120]
[321881672,1712580647424,-701.36,0.00070135,120]
[321881674,1712580647434,-943.74,0.00070135,120]
[321881675,1712580647444,-928.98033914,0.00070135,120]
[321881676,1712580647453,-531.64,0.00070135,120]
[321881677,1712580647462,-555.84,0.00070135,120]
[321881679,1712580647471,-500.0,0.00070135,120]
[321881680,1712580647481,-500.0,0.00070136,120]
[321881681,1712580647490,-198.13848617,0.00070136,120]
[321881682,1712580647499,-500.0,0.00070136,120]
[321881684,1712580647509,-1244.93,0.00070136,120]
[321881685,1712580647518,-570.25,0.00070136,2]
[321881686,1712580647527,-500.0,0.00070136,120]
[321881688,1712580647538,-500.0,0.00070136,120]
[321881689,1712580647548,-669.32,0.00070136,120]
[321881690,1712580647558,-500.0,0.00070203,120]
[321881691,1712580647567,-500.0,0.00070203,120]
[321881693,1712580647576,-500.0,0.00070203,120]
[321881694,1712580647585,-500.0,0.00070957,120]
[321881695,1712580647596,-1479.31,0.00070957,90]
[321881696,1712580647606,-500.0,0.00070957,120]
[321881698,1712580647615,-172.65192606,0.00070957,21]
[321881699,1712580647624,-841.46,0.00070957,120]
[321881700,1712580647633,-500.0,0.00070957,120]
[321881701,1712580647643,-581.41,0.00070957,120]
[321881703,1712580647653,-853.79,0.00070957,120]
[321881704,1712580647663,-500.0,0.00070957,120]
[321881705,1712580647673,-1093.89,0.00070957,120]
[321881706,1712580647683,-701.36,0.00070957,120]
[321881708,1712580647693,-943.74,0.00070957,120]
[321881709,1712580647702,-531.64,0.00070957,120]
[321881710,1712580647712,-555.84,0.00070957,120]
[321881711,1712580647721,-500.0,0.00070957,120]
[321881713,1712580647731,-500.0,0.00070958,120]
[321881714,1712580647740,-500.0,0.00070958,120]
[321881715,1712580647750,-1244.93,0.00070958,120]
[321881717,1712580647759,-570.25,0.00070958,2]
[321881718,1712580647769,-500.0,0.00070958,120]
[321881719,1712580647778,-500.0,0.00070958,120]
[321881720,1712580647787,-669.32,0.00070958,120]
[321881722,1712580647796,-500.0,0.00071024,120]
[321881723,1712580647805,-500.0,0.00071024,120]
[321881724,1712580647815,-500.0,0.00071024,120]
[321881725,1712580647824,-500.0,0.00071779,120]
[321881727,1712580647833,-1479.31,0.00071779,90]
[321881728,1712580647842,-500.0,0.00071779,120]
[321881729,1712580647852,-841.46,0.00071779,120]
[321881730,1712580647861,-500.0,0.00071779,120]
[321881732,1712580647870,-581.41,0.00071779,120]
[321881733,1712580647879,-853.79,0.00071779,120]
[321881734,1712580647889,-500.0,0.00071779,120]
[321881735,1712580647898,-1093.89,0.00071779,120]
[321881737,1712580647908,-701.36,0.00071779,120]
[321881738,1712580647917,-943.74,0.00071779,120]
[321881739,1712580647929,-531.64,0.00071779,120]
[321881740,1712580647938,-555.84,0.00071779,120]
[321881742,1712580647947,-500.0,0.00071779,120]
[321881743,1712580647956,-500.0,0.0007178,120]
[321881744,1712580647965,-500.0,0.0007178,120]
[321881745,1712580647974,-1244.93,0.0007178,120]
[321881747,1712580647984,-570.25,0.0007178,2]
[321881748,1712580647993,-500.0,0.0007178,120]
[321881749,1712580648002,-500.0,0.0007178,120]
[321881751,1712580648012,-669.32,0.0007178,120]
[321881752,1712580648021,-200.0,0.00071783,120]
[321881753,1712580648030,-500.0,0.00071846,120]
[321881754,1712580648040,-500.0,0.00071846,120]
[321881756,1712580648049,-500.0,0.00071846,120]
[321881757,1712580648059,-657.0,0.00072,4]
[321881758,1712580648068,-500.0,0.00072601,120]
[321881759,1712580648077,-1479.31,0.00072601,90]
[321881761,1712580648087,-575.78819618,0.00072601,120]
[321881762,1712580648096,-841.46,0.00072601,120]
[321881763,1712580648105,-500.0,0.00072601,120]
[321881764,1712580648115,-581.41,0.00072601,120]
[321881766,1712580648124,-853.79,0.00072601,120]
[321881767,1712580648133,-500.0,0.00072601,120]
[321881768,1712580648145,-1093.89,0.00072601,120]
[321881769,1712580648154,-701.36,0.00072601,120]
[321881771,1712580648163,-943.74,0.00072601,120]
[321881772,1712580648173,-531.64,0.00072601,120]
[321881773,1712580648186,-555.84,0.00072601,120]
[321881775,1712580648195,-500.0,0.00072601,120]
[321881776,1712580648204,-500.0,0.00072602,120]
[321881777,1712580648213,-500.0,0.00072602,120]
[321881778,1712580648222,-1244.93,0.00072602,120]
[321881780,1712580648232,-570.25,0.00072602,2]
[321881781,1712580648241,-376.87130976,0.00072602,120]
[321881782,1712580648251,-500.0,0.00072602,120]
[321881783,1712580648260,-669.32,0.00072602,120]
[321881785,1712580648272,-500.0,0.00072668,120]
[321881786,1712580648282,-500.0,0.00072668,120]
[321881787,1712580648291,-500.0,0.00072668,120]
[321881788,1712580648300,-30000.0,0.000729,120]
[321881789,1712580648310,-156.0540956,0.00073144,2]
[321881791,1712580648319,-496.26603063,0.00073423,120]
[321881792,1712580648328,-1479.31,0.00073423,90]
[321881793,1712580648338,-841.46,0.00073423,120]
[321881794,1712580648347,-500.0,0.00073423,120]
[321881796,1712580648357,-581.41,0.00073423,120]
[321881797,1712580648366,-853.79,0.00073423,120]
[321881798,1712580648375,-500.0,0.00073423,120]
[321881799,1712580648385,-1093.89,0.00073423,120]
[321881801,1712580648394,-701.36,0.00073423,120]
[321881802,1712580648405,-943.74,0.00073423,120]
[321881803,1712580648414,-531.64,0.00073423,120]
[321881804,1712580648426,-555.84,0.00073423,120]
[321881806,1712580648436,-500.0,0.00073423,120]
[321881807,1712580648446,-500.0,0.00073424,120]
[321881808,1712580648456,-500.0,0.00073424,120]
[321881809,1712580648466,-1244.93,0.00073424,120]
[321881811,1712580648475,-570.25,0.00073424,2]
[321881812,1712580648484,-500.0,0.00073424,120]
[321881813,1712580648493,-669.32,0.00073424,120]